bitfinex/quotes_BTCUSD_20250730
["timestamp","ask_amount","ask_price","bid_price","bid_amount"]
[1753899013731,0.00074519,118050.0,118040.0,1.16225607]
[1753899013956,0.00074519,118050.0,118040.0,0.98707741]
[1753899014170,0.00375519,118050.0,118040.0,0.72563905]
[1753899014395,0.00375519,118050.0,118040.0,0.70051905]
[1753899014629,0.00074519,118050.0,118040.0,0.77138329]
[1753899014864,0.00074519,118050.0,118040.0,1.1575488]
[1753899015090,0.00074519,118050.0,118040.0,1.87747431]
[1753899015308,0.00074519,118050.0,118040.0,1.54549594]
[1753899015539,0.00074519,118050.0,118040.0,1.54749594]
[1753899016015,0.00074519,118050.0,118040.0,1.56494496]
[1753899016242,0.00074519,118050.0,118040.0,1.56294496]
[1753899016470,0.00074519,118050.0,118040.0,1.94647047]
[1753899016698,0.00074519,118050.0,118040.0,1.94947047]
[1753899016916,1e-08,118050.0,118040.0,1.95247047]
[1753899017138,1e-08,118050.0,118040.0,1.94947047]
[1753899017813,1e-08,118050.0,118040.0,1.95447047]
[1753899018300,1e-08,118050.0,118040.0,1.95147047]
[1753899018765,1e-08,118050.0,118040.0,1.95447047]
[1753899019253,1e-08,118050.0,118040.0,1.58854496]
[1753899019740,1e-08,118050.0,118040.0,1.57446496]
[1753899019986,1e-08,118050.0,118040.0,0.85581043]
[1753899020234,0.00301001,118050.0,118040.0,0.78536043]
[1753899020474,0.00301001,118050.0,118040.0,0.72386043]
[1753899020736,0.00301001,118050.0,118040.0,0.69844619]
[1753899020982,1e-08,118050.0,118040.0,0.82551043]
[1753899021228,1e-08,118050.0,118040.0,1.13956329]
[1753899021478,1e-08,118050.0,118040.0,1.4974888]
[1753899021730,1e-08,118050.0,118040.0,1.5004888]
[1753899021988,1e-08,118050.0,118040.0,1.5287288]
[1753899022224,1e-08,118050.0,118040.0,1.3876488]
[1753899022457,1e-08,118050.0,118040.0,1.5257288]
[1753899022699,1e-08,118050.0,118040.0,1.16380329]
[1753899022945,1e-08,118050.0,118040.0,1.5237288]
[1753899023192,1e-08,118050.0,118040.0,1.55248278]
[1753899023696,1e-08,118050.0,118040.0,1.52748278]
[1753899024175,1e-08,118050.0,118040.0,1.55248278]
[1753899025942,1e-08,118050.0,118040.0,1.57748278]
[1753899026195,1e-08,118050.0,118040.0,1.5949318]
[1753899028678,1e-08,118050.0,118040.0,1.4568518]
[1753899028934,1e-08,118050.0,118040.0,1.57740278]
[1753899030400,1e-08,118050.0,118040.0,1.95277731]
[1753899030603,1e-08,118050.0,118040.0,1.5948518]
[1753899031402,1e-08,118050.0,118040.0,1.23692629]
[1753899031653,1e-08,118050.0,118040.0,1.5948518]
[1753899031889,1e-08,118050.0,118040.0,1.57740278]
[1753899032392,1e-08,118050.0,118040.0,1.21947727]
[1753899032663,1e-08,118050.0,118040.0,1.57740278]
[1753899034282,1e-08,118050.0,118040.0,1.5948518]
[1753899034518,1e-08,118050.0,118040.0,1.5898518]
[1753899034760,1e-08,118050.0,118040.0,1.95077731]
[1753899034986,1e-08,118050.0,118040.0,1.5928518]
[1753899035204,1e-08,118050.0,118040.0,1.5968518]
[1753899036390,1e-08,118050.0,118040.0,1.5959318]
[1753899036607,1e-08,118050.0,118040.0,1.5999318]
[1753899036830,1e-08,118050.0,118040.0,1.6177488]
[1753899037497,1e-08,118050.0,118040.0,1.97567431]
[1753899037921,1e-08,118050.0,118040.0,1.25982329]
[1753899038139,1e-08,118050.0,118040.0,1.6177488]
[1753899038613,1e-08,118050.0,118040.0,1.6137488]
[1753899038830,1e-08,118050.0,118040.0,1.6207488]
[1753899039931,1e-08,118050.0,118040.0,1.97867431]
[1753899040623,1e-08,118050.0,118040.0,1.6207488]
[1753899041489,1e-08,118050.0,118040.0,1.5957488]
[1753899041711,1e-08,118050.0,118040.0,1.59553386]
[1753899041940,0.00204001,118050.0,118040.0,1.61717386]
[1753899042184,1e-08,118050.0,118040.0,1.61717386]
[1753899042430,1e-08,118050.0,118040.0,1.62027386]
[1753899042904,0.00204001,118050.0,118040.0,1.61717386]
[1753899043141,1e-08,118050.0,118040.0,1.61717386]
[1753899043374,1e-08,118050.0,118040.0,1.62027386]
[1753899045254,0.00204001,118050.0,118040.0,1.59935686]
[1753899045489,0.00500001,118050.0,118040.0,1.20888784]
[1753899045936,0.00500001,118050.0,118040.0,1.54888784]
[1753899046404,0.00500001,118050.0,118040.0,1.20488784]
[1753899046622,0.00204001,118050.0,118040.0,1.56828784]
[1753899046844,0.00204001,118050.0,118040.0,1.57128784]
[1753899047064,0.00204001,118050.0,118040.0,1.57628784]
[1753899047725,0.00204001,118050.0,118040.0,1.55128784]
[1753899047943,0.00204001,118050.0,118040.0,1.57628784]
[1753899048506,1e-08,118050.0,118040.0,1.22044233]
[1753899048758,0.00204001,118050.0,118040.0,1.19336233]
[1753899048978,0.00204001,118050.0,118040.0,1.21836233]
[1753899049214,0.00204001,118050.0,118040.0,1.02512233]
[1753899049454,0.00500001,118050.0,118040.0,1.06021233]
[1753899050385,0.00500001,118050.0,118040.0,0.89742972]
[1753899050632,0.03270001,118050.0,118040.0,0.54895809]
[1753899050879,0.03270001,118050.0,118040.0,0.62397043]
[1753899051369,0.03270001,118050.0,118040.0,0.63240206]
[1753899051826,0.03270001,118050.0,118040.0,0.63240213]
[1753899052048,0.03270001,118050.0,118040.0,0.54710181]
[1753899052310,0.03270001,118050.0,118040.0,0.42874236]
[1753899052551,0.04170001,118050.0,118040.0,0.42874236]
[1753899053013,0.04136286,118050.0,118040.0,0.60017645]
[1753899053470,0.04136286,118050.0,118040.0,0.42574236]
[1753899053695,0.17896194,118070.0,118040.0,0.42774236]
[1753899053995,0.17910744,118070.0,118050.0,0.1378]
[1753899054216,0.17910744,118070.0,118060.0,0.2222773]
[1753899054448,0.37552003,118070.0,118060.0,0.1378]
[1753899054672,0.38398893,118070.0,118060.0,0.1378]
[1753899054904,0.74939656,118070.0,118050.0,0.0844773]
[1753899055129,0.38384422,118060.0,118040.0,0.20468]
[1753899055352,0.01744902,118060.0,118050.0,0.1378]
[1753899055578,0.37537453,118060.0,118050.0,0.1378]
[1753899056023,0.38299713,118060.0,118050.0,0.1378]
[1753899056245,0.39993687,118060.0,118050.0,0.1378]
[1753899056532,0.83288429,118060.0,118050.0,0.1378]
[1753899056754,0.74840763,118060.0,118050.0,0.1378]
[1753899056977,0.91781301,118060.0,118050.0,0.1378]
[1753899057889,0.34847048,118050.0,118040.0,0.001]
[1753899058111,0.70639599,118050.0,118040.0,0.1378]
[1753899058335,0.70639592,118050.0,118040.0,0.1378]
[1753899058553,0.71486647,118050.0,118040.0,0.1378]
[1753899058752,0.72333724,118050.0,118040.0,0.1378]
[1753899058964,0.71486647,118050.0,118040.0,0.1378]
[1753899059194,1.00315433,118050.0,118040.0,0.1378]
[1753899059403,1.02589849,118050.0,118040.0,0.1378]
[1753899059611,0.94142119,118050.0,118040.0,0.1378]
[1753899059845,0.2038262,118040.0,118010.0,0.06786275]
[1753899060076,0.00847184,118030.0,118020.0,0.2222773]
[1753899060306,0.40926269,118030.0,118020.0,0.1378]
[1753899060534,0.39231836,118030.0,118020.0,0.1378]
[1753899060750,0.40079056,118030.0,118020.0,0.1378]
[1753899060975,0.40926291,118030.0,118020.0,0.1378]
[1753899061205,0.19488149,118020.0,118010.0,0.13776]
[1753899061436,0.91025566,118020.0,118010.0,0.00048519]
[1753899061712,0.9187288,118020.0,118010.0,0.13824519]
[1753899061937,0.73231987,118020.0,118010.0,0.00048519]
[1753899062379,0.74079279,118020.0,118010.0,0.00048519]
[1753899062589,0.74926593,118020.0,118010.0,0.00048519]
[1753899062815,0.90178339,118020.0,118010.0,0.00048519]
[1753899063074,0.89331047,118020.0,118010.0,0.00048519]
[1753899063516,0.20847191,118030.0,118010.0,0.00048519]
[1753899063744,0.35792551,118030.0,118010.0,0.13824519]
[1753899063978,0.34,118030.0,118010.0,0.22272249]
[1753899064239,0.34847184,118030.0,118010.0,0.22272249]
[1753899064471,0.70639728,118030.0,118010.0,0.22272249]
[1753899064920,0.69792551,118030.0,118010.0,0.22272249]
[1753899065140,0.70639735,118030.0,118010.0,0.22272249]
[1753899065364,0.35792551,118020.0,118010.0,0.22272249]
[1753899066059,0.366398,118020.0,118010.0,0.22272249]
[1753899066278,0.35792551,118020.0,118010.0,0.22272249]
[1753899067175,0.72334103,118030.0,118010.0,0.22272249]
[1753899067626,0.69792551,118030.0,118010.0,0.26681249]
[1753899067848,0.69792551,118030.0,118010.0,0.29381174]
[1753899068068,0.70639742,118030.0,118010.0,0.26681249]
[1753899068301,0.70639742,118030.0,118010.0,0.22272249]
[1753899068515,0.72334161,118030.0,118010.0,0.22272249]
[1753899068940,0.90126255,118030.0,118010.0,0.22272249]
[1753899069409,0.00847249,118020.0,118010.0,0.22272249]
[1753899069634,0.3918164,118020.0,118010.0,0.22272249]
[1753899070054,0.39181633,118020.0,118010.0,0.22272249]
[1753899070271,0.366398,118020.0,118010.0,0.22272249]
[1753899070478,0.90127934,118020.0,118010.0,0.22272249]
[1753899070689,0.90178324,118020.0,118010.0,0.00048519]
[1753899072011,0.89331039,118020.0,118010.0,0.00048519]
[1753899073071,0.90178324,118020.0,118010.0,0.00048519]
[1753899073314,0.74926607,118020.0,118010.0,0.00048519]
[1753899073559,0.91872887,118020.0,118010.0,0.00048519]
[1753899073772,0.74926599,118020.0,118010.0,0.00048519]
[1753899073996,0.91872879,118020.0,118010.0,0.00048519]
[1753899074485,0.91025609,118020.0,118010.0,0.00048519]
[1753899075392,0.90178339,118020.0,118010.0,0.00048519]
[1753899076055,0.30717054,118030.0,118010.0,0.04986519]
[1753899076056,0.51258955,118030.0,118010.0,0.04986519]
[1753899076268,0.00847263,118020.0,118010.0,0.04986519]
[1753899076481,0.36639814,118020.0,118010.0,0.04986519]
[1753899076690,0.36639807,118020.0,118010.0,0.04986519]
[1753899076938,0.37487077,118020.0,118010.0,0.00048519]
[1753899077469,0.38334355,118020.0,118010.0,0.00048519]
[1753899078097,0.37487077,118020.0,118010.0,0.00048519]
[1753899078537,0.38334355,118020.0,118010.0,0.00048519]
[1753899078781,0.5612792,118020.0,118010.0,0.00048519]
[1753899079014,0.95790967,118020.0,118010.0,0.00048519]
[1753899080419,0.90178317,118020.0,118010.0,0.00048519]
[1753899080945,6.23950317,118020.0,118010.0,0.00048519]
[1753899081234,6.73295598,118020.0,118010.0,0.00048519]
[1753899081533,6.73170698,118020.0,118010.0,0.00048519]
[1753899081745,6.42251696,118020.0,118010.0,0.00048519]
[1753899081976,6.50699426,118020.0,118010.0,0.00048519]
[1753899082486,6.48199426,118020.0,118010.0,0.00048519]
[1753899082745,6.29553877,118020.0,118010.0,0.00048519]
[1753899082973,6.34094862,118020.0,118010.0,0.00048519]
[1753899083431,6.34194862,118020.0,118010.0,0.00048519]
[1753899083662,6.36016949,118020.0,118010.0,0.00048519]
[1753899084118,6.34194862,118020.0,118010.0,0.00048519]
[1753899084341,6.38377828,118020.0,118010.0,0.00048519]
[1753899084811,6.34194862,118020.0,118010.0,0.00048519]
[1753899085078,5.48633283,118020.0,118010.0,0.00048519]
[1753899085339,5.54794578,118020.0,118010.0,0.04457519]
[1753899085570,5.88794571,118020.0,118010.0,0.04457519]
[1753899085798,6.07067138,118020.0,118010.0,0.04457519]
[1753899086260,6.07267138,118020.0,118010.0,0.04457519]
[1753899086542,0.35526229,118020.0,118010.0,0.04457519]
[1753899086780,0.35526229,118020.0,118010.0,0.04754519]
[1753899086781,0.343,118020.0,118010.0,0.04754519]
[1753899087267,0.343,118020.0,118010.0,0.11024519]
[1753899087512,0.35894512,118020.0,118010.0,0.11024519]
[1753899087760,0.35894512,118020.0,118010.0,0.04754519]
[1753899087761,0.35047249,118020.0,118010.0,0.04754519]
[1753899087992,0.343,118020.0,118010.0,0.04754519]
[1753899088450,0.70092551,118020.0,118010.0,0.04754519]
[1753899088691,0.001,118020.0,118010.0,0.11024519]
[1753899088940,0.34694069,118020.0,118010.0,0.11024519]
[1753899089193,0.34694134,118020.0,118010.0,0.11024519]
[1753899089630,0.34594134,118020.0,118010.0,0.11024519]
[1753899089853,0.00594134,118020.0,118010.0,0.21951101]
[1753899090100,0.00694134,118020.0,118010.0,0.21951101]
[1753899091421,0.00694134,118020.0,118010.0,0.22162101]
[1753899092505,0.00694134,118020.0,118010.0,0.39109817]
[1753899092761,0.00694134,118020.0,118010.0,0.22162101]
[1753899095604,0.38181219,118020.0,118010.0,0.24991519]
[1753899095817,0.37333941,118020.0,118010.0,0.18721519]
[1753899096033,0.55974798,118020.0,118010.0,0.18721519]
[1753899096244,0.39028518,118020.0,118010.0,0.18510519]
[1753899096466,0.39028518,118020.0,118010.0,0.18213519]
[1753899097162,0.39875832,118020.0,118010.0,0.18213519]
[1753899097381,0.39028518,118020.0,118010.0,0.04457519]
[1753899097605,0.56822112,118020.0,118010.0,0.18213519]
[1753899097843,0.39875832,118020.0,118010.0,0.18213519]
[1753899098055,0.39028511,118020.0,118010.0,0.18213519]
[1753899098511,0.96336813,118020.0,118010.0,0.04457519]
[1753899098738,0.96387203,118020.0,118010.0,0.13800519]
[1753899098963,6.16387203,118020.0,118010.0,0.00048519]
[1753899103252,6.16387975,118020.0,118010.0,0.00048519]
[1753899103487,6.18935775,118020.0,118010.0,0.00048519]
[1753899103932,6.18935812,118020.0,118010.0,0.00048519]
[1753899104616,6.18935795,118020.0,118010.0,0.00048519]
[1753899105307,6.13421079,118020.0,118010.0,0.00048519]
[1753899107910,6.10873279,118020.0,118010.0,0.04814519]
[1753899108159,5.60682319,118020.0,118010.0,0.04814519]
[1753899108433,6.1342115,118020.0,118010.0,0.04814519]
[1753899108874,6.1087325,118020.0,118010.0,0.04814519]
[1753899109572,6.1087325,118020.0,118010.0,0.04306519]
[1753899111367,6.1087325,118020.0,118010.0,0.04814519]
[1753899111595,6.1087325,118020.0,118010.0,0.07914519]
[1753899111816,6.1087325,118020.0,118010.0,0.04814519]
[1753899112027,6.1932098,118020.0,118010.0,0.04814519]
[1753899112903,6.18473695,118020.0,118010.0,0.04814519]
[1753899113788,6.10025965,118020.0,118010.0,0.04814519]
[1753899114010,1.10025965,118020.0,118010.0,0.04814519]
[1753899114230,6.10025965,118020.0,118010.0,0.04603519]
[1753899114672,6.10025965,118020.0,118010.0,0.04306519]
[1753899114929,6.10025965,118020.0,118010.0,0.00048519]
[1753899115145,6.18473695,118020.0,118010.0,0.00048519]
[1753899115367,5.82681144,118020.0,118010.0,0.00048519]
[1753899115595,6.18473695,118020.0,118010.0,0.00048519]
[1753899115811,6.29421425,118020.0,118010.0,0.00048519]
[1753899116737,6.12109695,118020.0,118010.0,0.00048519]
[1753899117169,6.12209695,118020.0,118010.0,0.00048519]
[1753899117378,6.11614769,118020.0,118010.0,0.00048519]
[1753899117585,6.12210104,118020.0,118010.0,0.00048519]
[1753899118955,6.14758104,118020.0,118010.0,0.00048519]
[1753899119168,6.28205834,118020.0,118010.0,0.00048519]
[1753899120307,6.48205834,118020.0,118010.0,0.00048519]
[1753899120543,7.06255194,118020.0,118010.0,0.00048519]
[1753899120762,7.09250383,118020.0,118010.0,0.00048519]
[1753899120979,7.06993574,118020.0,118010.0,0.00048519]
[1753899121201,7.0479264,118020.0,118010.0,0.00048519]
[1753899121444,6.3320801,118020.0,118010.0,0.00048519]
[1753899121670,6.3320801,118020.0,118010.0,1e-08]
[1753899121671,6.34796638,118020.0,118010.0,1e-08]
[1753899121891,5.52648771,117970.0,117960.0,0.10795]
[1753899122106,5.52648771,117970.0,117960.0,0.11]
[1753899122107,5.986388,117970.0,117960.0,0.11]
[1753899122978,6.123668,117970.0,117960.0,0.11]
[1753899123196,6.123668,117970.0,117960.0,0.04475]
[1753899123413,6.01577618,117970.0,117960.0,0.04165]
[1753899123636,6.20226389,117970.0,117960.0,0.04165]
[1753899123921,0.39547531,117960.0,117950.0,0.07575]
[1753899124175,0.81557325,117960.0,117950.0,0.10755]
[1753899124385,0.81557325,117960.0,117950.0,0.04475]
[1753899124812,0.81557325,117960.0,117950.0,0.0468]
[1753899125076,0.95285325,117960.0,117950.0,0.0468]
[1753899125289,5.95285325,117960.0,117950.0,0.0468]
[1753899125961,5.95285325,117960.0,117950.0,0.0777]
[1753899126215,5.97290267,117960.0,117950.0,0.1101]
[1753899126446,5.97290267,117960.0,117950.0,0.1111]
[1753899126693,5.97290267,117960.0,117950.0,0.1131]
[1753899127147,5.9813799,117960.0,117950.0,0.1131]
[1753899127378,5.97290267,117960.0,117950.0,0.1131]
[1753899128299,0.97290267,117960.0,117950.0,0.1131]
[1753899128991,0.80335368,117960.0,117950.0,0.1131]
[1753899129447,0.81183077,117960.0,117950.0,0.1131]
[1753899129894,0.79438132,117960.0,117950.0,0.1131]
[1753899130121,0.80285855,117960.0,117950.0,0.1131]
[1753899130350,0.02004942,117960.0,117950.0,0.1131]
[1753899130574,0.52004942,117960.0,117950.0,0.1131]
[1753899130796,5.00004846,117970.0,117960.0,0.0626]
[1753899131016,0.34004846,117970.0,117960.0,0.1094]
[1753899131245,4.846e-05,117970.0,117960.0,0.1094]
[1753899131520,0.35797397,117970.0,117960.0,0.1094]
[1753899131776,4.846e-05,117970.0,117960.0,0.1094]
[1753899132008,0.02033036,117970.0,117960.0,0.1094]
[1753899132245,4.846e-05,117970.0,117960.0,0.1094]
[1753899133166,0.36745012,117970.0,117960.0,0.1094]
[1753899133393,0.35897397,117970.0,117960.0,0.1094]
[1753899133623,0.35797397,117970.0,117960.0,0.1094]
[1753899133857,0.78582146,117970.0,117960.0,0.1124]
[1753899134140,0.79429776,117970.0,117960.0,0.1124]
[1753899134380,0.78582146,117970.0,117960.0,0.1124]
[1753899134576,0.80277427,117970.0,117960.0,0.1124]
[1753899134855,0.97230946,117970.0,117960.0,0.1124]
[1753899135046,0.74146911,117970.0,117960.0,0.1124]
[1753899135327,0.37506611,117970.0,117960.0,0.1124]
[1753899135571,0.72704624,117970.0,117960.0,0.1124]
[1753899136249,0.75842116,117970.0,117960.0,0.1124]
[1753899136477,0.7524752,117970.0,117960.0,0.1124]
[1753899136696,0.75842171,117970.0,117960.0,0.1124]
[1753899137376,0.76689887,117970.0,117960.0,0.1124]
[1753899137617,0.75842214,117970.0,117960.0,0.1124]
[1753899138081,0.84289944,117970.0,117960.0,0.1124]
[1753899139293,1.01243457,117970.0,117960.0,0.1124]
[1753899139962,0.92795727,117970.0,117960.0,0.1124]
[1753899140186,0.75842257,117970.0,117960.0,0.1124]
[1753899140604,0.91948089,117970.0,117960.0,0.1124]
[1753899140873,0.91100445,117970.0,117960.0,0.10725]
[1753899141583,0.91100445,117970.0,117960.0,0.11035]
[1753899142070,0.38354397,117970.0,117960.0,0.1124]
[1753899142298,0.39201812,117970.0,117960.0,0.1124]
[1753899142491,0.4004947,117970.0,117960.0,0.1124]
[1753899142976,0.39201812,117970.0,117960.0,0.1124]
[1753899143266,0.37506538,117970.0,117960.0,0.1124]
[1753899143502,0.3665893,117970.0,117960.0,0.1124]
[1753899143740,0.3665893,117970.0,117960.0,0.137356]
[1753899143970,0.0265893,117970.0,117960.0,0.28969605]
[1753899144208,0.00599311,117970.0,117960.0,0.45924504]
[1753899144443,0.18806398,118010.0,118000.0,0.0627]
[1753899144682,0.18806398,118010.0,118000.0,0.20191]
[1753899144683,5.02378714,118010.0,118000.0,0.20191]
[1753899144912,5.40914198,118010.0,118000.0,0.24666]
[1753899145140,5.41761576,118010.0,118000.0,0.24666]
[1753899145374,5.41761593,118010.0,118000.0,0.24666]
[1753899145600,5.18644195,118000.0,117990.0,0.10495]
[1753899145836,0.90167085,118000.0,117990.0,0.24211]
[1753899146099,0.90167085,118000.0,117990.0,0.20046]
[1753899146542,0.17798104,117990.0,117980.0,0.10562]
[1753899146856,0.5617013,117990.0,117980.0,0.10562]
[1753899147108,0.62238385,117990.0,117980.0,0.24274]
[1753899147514,0.18845611,117990.0,117980.0,0.2448]
[1753899147769,0.38535102,117990.0,117980.0,0.2448]
[1753899147991,0.38335102,117990.0,117980.0,0.24795]
[1753899148219,0.55485691,117990.0,117980.0,0.10562]
[1753899148454,1.07790669,117990.0,117980.0,0.20142]
[1753899148682,1.16238399,117990.0,117980.0,0.13712]
[1753899148910,1.16238399,117990.0,117980.0,0.17844]
[1753899149134,1.16238399,117990.0,117980.0,0.21014]
[1753899149382,1.17032267,117990.0,117980.0,0.20914]
[1753899149599,1.1861998,117990.0,117980.0,0.20666]
[1753899150714,0.1864719,117980.0,117970.0,0.10362]
[1753899150937,0.54640741,117980.0,117970.0,0.2407]
[1753899151161,0.53793162,117980.0,117970.0,0.24276]
[1753899151388,0.01695108,117980.0,117970.0,0.27020056]
[1753899151618,0.34,117980.0,117970.0,0.26840056]
[1753899152089,0.34,117980.0,117970.0,0.35287786]
[1753899153040,5.0,117990.0,117980.0,0.0631]
[1753899153236,5.34,117990.0,117980.0,0.06516]
[1753899153508,0.34847471,117990.0,117980.0,0.10963]
[1753899153756,0.3654245,117990.0,117980.0,0.24671]
[1753899154490,0.36542443,117990.0,117980.0,0.24671]
[1753899154714,0.3569495,117990.0,117980.0,0.24671]
[1753899154937,0.36542436,117990.0,117980.0,0.24671]
[1753899155600,0.36742436,117990.0,117980.0,0.24671]
[1753899155840,0.37589929,117990.0,117980.0,0.24671]
[1753899156523,0.55136249,117990.0,117980.0,0.10963]
[1753899156750,0.97879537,117990.0,117980.0,0.24352]
[1753899156990,0.97879537,117990.0,117980.0,0.24146]
[1753899156991,0.9703203,117990.0,117980.0,0.24146]
[1753899157227,0.9703199,117990.0,117980.0,0.10442]
[1753899157459,0.52648771,117970.0,117960.0,0.24445559]
[1753899157711,1.08204797,117970.0,117960.0,0.10426559]
[1753899157956,1.08204797,117970.0,117960.0,0.06294559]
[1753899158207,1.08483797,117970.0,117960.0,0.00014559]
[1753899158675,1.08204797,117970.0,117960.0,0.00014559]
[1753899158926,1.08204797,117970.0,117960.0,0.07466559]
[1753899159452,1.08204797,117970.0,117960.0,0.07566559]
[1753899160367,1.08204797,117970.0,117960.0,0.07366559]
[1753899160589,1.08204797,117970.0,117960.0,0.10506559]
[1753899161529,6.28204797,117970.0,117960.0,0.06374559]
[1753899161963,6.28483797,117970.0,117960.0,0.00014559]
[1753899162202,6.31032697,117970.0,117960.0,0.00014559]
[1753899162432,1.31032697,117970.0,117960.0,0.00014559]
[1753899162645,6.31032697,117970.0,117960.0,0.00014559]
[1753899163095,6.31132697,117970.0,117960.0,0.00014559]
[1753899163331,6.31232697,117970.0,117960.0,0.00014559]
[1753899164029,0.36490864,117970.0,117960.0,0.17783834]
[1753899164255,0.02742917,117970.0,117960.0,0.17783834]
[1753899164477,0.01895259,117970.0,117960.0,0.17783834]
[1753899164724,0.342,117970.0,117960.0,0.17783834]
[1753899165829,0.002,117970.0,117960.0,0.26231564]
[1753899166039,0.342,117970.0,117960.0,0.26231564]
[1753899166250,0.342,117970.0,117960.0,0.19445289]
[1753899166879,0.341,117970.0,117960.0,0.19445289]
[1753899167090,0.34,117970.0,117960.0,0.19545289]
[1753899167517,0.34,117970.0,117960.0,0.19645289]
[1753899167944,0.37119297,117990.0,117970.0,0.066]
[1753899168170,0.37119297,117990.0,117980.0,0.066]
[1753899168171,0.49139125,117990.0,117980.0,0.066]
[1753899168402,0.36290618,117990.0,117980.0,0.11253]
[1753899168620,0.37138125,117990.0,117980.0,0.11253]
[1753899169050,0.36290618,117990.0,117980.0,0.11253]
[1753899169261,0.72183169,117990.0,117980.0,0.11253]
[1753899169486,0.70740022,117990.0,117980.0,0.11253]
[1753899169775,0.341,117990.0,117980.0,0.11253]
[1753899170023,0.69992551,117990.0,117980.0,0.11253]
[1753899170255,0.001,117990.0,117980.0,0.11253]
[1753899170473,0.001,117990.0,117980.0,0.137479]
[1753899170697,0.002,117990.0,117980.0,0.137479]
[1753899170919,0.001,117990.0,117980.0,0.11253]
[1753899172052,5.71487365,118000.0,117990.0,0.0634]
[1753899172331,5.71433357,118000.0,117990.0,0.10678]
[1753899172589,5.71235357,118000.0,117990.0,0.10993]
[1753899172793,5.72082771,118000.0,117990.0,0.10993]
[1753899173012,5.71235357,118000.0,117990.0,0.10993]
[1753899173250,5.3629022,118000.0,117990.0,0.10993]
[1753899173511,5.3629022,118000.0,117990.0,0.10893]
[1753899173731,5.35442806,118000.0,117990.0,0.10893]
[1753899173961,5.36290227,118000.0,117990.0,0.10893]
[1753899174189,5.35442806,118000.0,117990.0,0.10893]
[1753899174410,5.3629022,118000.0,117990.0,0.10893]
[1753899174872,5.72082778,118000.0,117990.0,0.10893]
[1753899175342,0.72930214,118000.0,117990.0,0.10893]
[1753899175556,0.72082771,118000.0,117990.0,0.10893]
[1753899176058,0.72930199,118000.0,117990.0,0.10893]
[1753899176366,0.37137648,118000.0,117990.0,0.10893]
[1753899176797,0.35442806,118000.0,117990.0,0.10893]
[1753899177265,0.3629022,118000.0,117990.0,0.10893]
[1753899177513,0.53435372,118000.0,117990.0,0.10578]
[1753899177751,0.34791406,118000.0,117990.0,0.10578]
[1753899177979,0.00595406,118000.0,117990.0,0.24582]
[1753899178200,0.03688092,118010.0,118000.0,0.0615]
[1753899178201,0.05130552,118010.0,118000.0,0.0615]
[1753899178417,0.36588568,118010.0,118000.0,0.10995]
[1753899178669,0.36588568,118010.0,118000.0,0.1944273]
[1753899178670,0.02588568,118010.0,118000.0,0.1944273]
[1753899179172,0.01993443,118010.0,118000.0,0.1944273]
[1753899179427,0.01993443,118010.0,118000.0,0.22769962]
[1753899179668,0.35694519,118020.0,118010.0,0.0615]
[1753899179867,0.35694519,118020.0,118010.0,0.06364]
[1753899180089,0.36541797,118020.0,118010.0,0.10995]
[1753899180326,0.35694519,118020.0,118010.0,0.10995]
[1753899180559,0.34,118020.0,118010.0,0.10995]
[1753899181011,0.35694534,118020.0,118010.0,0.24675]
[1753899181466,0.72530384,118020.0,118010.0,0.24675]
[1753899181692,0.71683077,118020.0,118010.0,0.24675]
[1753899182127,0.35890526,118020.0,118010.0,0.24675]
[1753899182568,0.36737811,118020.0,118010.0,0.24675]
[1753899182795,0.35890526,118020.0,118010.0,0.24675]
[1753899183047,0.35043256,118020.0,118010.0,0.24675]
[1753899183277,0.36786495,118020.0,118010.0,0.24675]
[1753899183511,0.37633773,118020.0,118010.0,0.24137]
[1753899183709,0.38481058,118020.0,118010.0,0.24137]
[1753899184010,0.39328357,118020.0,118010.0,0.24137]
[1753899184221,0.75120908,118020.0,118010.0,0.24137]
[1753899184436,0.90372654,118020.0,118010.0,0.24137]
[1753899184658,0.54580103,118020.0,118010.0,0.24137]
[1753899184857,0.37633823,118020.0,118010.0,0.24351]
[1753899185128,0.73426338,118020.0,118010.0,0.24671]
[1753899185367,0.38285064,118020.0,118010.0,0.24671]
[1753899185592,0.39132378,118020.0,118010.0,0.24671]
[1753899185813,0.74077615,118020.0,118010.0,0.24671]
[1753899186027,0.74924929,118020.0,118010.0,0.24671]
[1753899186259,0.74924929,118020.0,118010.0,0.10995]
[1753899186469,0.74924929,118020.0,118010.0,0.24667]
[1753899186702,0.74077615,118020.0,118010.0,0.24667]
[1753899186893,0.74924921,118020.0,118010.0,0.24667]
[1753899187364,0.74077608,118020.0,118010.0,0.24667]
[1753899188220,0.92718494,118020.0,118010.0,0.24667]
[1753899188438,0.56925943,118020.0,118010.0,0.24667]
[1753899188658,0.75772206,118020.0,118010.0,0.24667]
[1753899188880,0.74924943,118020.0,118010.0,0.24667]
[1753899189236,0.91871223,118020.0,118010.0,0.24667]
[1753899189465,0.91219953,118020.0,118010.0,0.24667]
[1753899189664,0.92067267,118020.0,118010.0,0.24667]
[1753899190926,0.74273673,118020.0,118010.0,0.24667]
[1753899191133,0.91219953,118020.0,118010.0,0.24667]
[1753899191338,0.92067267,118020.0,118010.0,0.24667]
[1753899191637,0.57219982,118020.0,118010.0,0.10995]
[1753899191829,0.5637269,118020.0,118010.0,0.24663]
[1753899192050,0.16947716,118010.0,118000.0,0.21019559]
[1753899192259,0.54630987,118010.0,118000.0,0.24289559]
[1753899192883,0.55478351,118010.0,118000.0,0.24289559]
[1753899193302,0.01694677,118010.0,118000.0,0.24923559]
[1753899193522,0.02542034,118010.0,118000.0,0.24923559]
[1753899193731,0.02542034,118010.0,118000.0,0.25023559]
[1753899193732,0.01694677,118010.0,118000.0,0.25023559]
[1753899193944,0.02590509,118020.0,118000.0,0.21225915]
[1753899194161,0.35743239,118020.0,118010.0,0.10781]
[1753899194383,0.01743239,118020.0,118010.0,0.10995]
[1753899194601,0.66201617,118030.0,118010.0,0.10995]
[1753899194602,0.51048823,118030.0,118010.0,0.10995]
[1753899194813,0.51048823,118030.0,118020.0,0.10781]
[1753899195019,0.52092051,118030.0,118020.0,0.10995]
[1753899195447,0.51244816,118030.0,118020.0,0.10995]
[1753899195665,0.50397596,118030.0,118020.0,0.10995]
[1753899195886,1.03982262,118030.0,118020.0,0.10995]
[1753899196097,1.05806562,118030.0,118020.0,0.10995]
[1753899196314,0.92740804,118030.0,118020.0,0.24335]
[1753899196754,0.40003394,118030.0,118020.0,0.24335]
[1753899196972,0.75795945,118030.0,118020.0,0.24335]
[1753899197174,0.76743261,118030.0,118020.0,0.24335]